bitfinex/quotes_SOLUSD_20240616
["timestamp","ask_amount","ask_price","bid_price","bid_amount"]
[1718541181712,15.8467,145.44,145.39,7.6343]
[1718541181908,15.8467,145.44,145.39,2.5447]
[1718541182222,18.3907,145.44,145.38,25.4492]
[1718541182394,18.3907,145.44,145.39,2.5448]
[1718541182593,18.3907,145.44,145.38,25.4493]
[1718541183321,0.17,145.43,145.38,25.4493]
[1718541183615,0.68,145.43,145.38,7.6347]
[1718541183814,3.2241,145.43,145.38,2.5449]
[1718541184010,8.3124,145.43,145.37,17.8158]
[1718541184322,8.3124,145.43,145.37,7.6353]
[1718541184803,8.3124,145.43,145.37,15.2709]
[1718541185012,3.2241,145.43,145.38,2.545]
[1718541186011,8.3124,145.43,145.37,25.4516]
[1718541187100,3.2241,145.43,145.37,22.9066]
[1718541187300,8.3124,145.43,145.37,12.7258]
[1718541187502,8.3124,145.43,145.37,5.0902]
[1718541188302,3.2241,145.43,145.37,5.0902]
[1718541192408,0.68,145.43,145.37,5.0902]
[1718541192723,0.68,145.43,145.34,16.95489946]
[1718541196754,7.2594,145.43,145.34,0.28869946]
[1718541196950,0.17,145.41,145.34,0.28869946]
[1718541197243,17.2436,145.41,145.34,0.28869946]
[1718541199413,24.8772,145.41,145.34,0.28869946]
[1718541199614,19.7882,145.41,145.34,0.28869946]
[1718541200312,17.2436,145.41,145.34,0.28869946]
[1718541203744,19.7881,145.41,145.34,0.28869946]
[1718541204150,17.2436,145.41,145.34,0.28869946]
[1718541206949,32.5108,145.41,145.34,0.28869946]
[1718541207250,24.8773,145.41,145.34,0.28869946]
[1718541208041,19.7882,145.41,145.34,0.28869946]
[1718541208346,24.8772,145.41,145.34,0.28869946]
[1718541208531,0.17,145.38,145.34,0.28869946]
[1718541208731,0.68,145.38,145.34,0.28869946]
[1718541209955,15.3671,145.37,145.34,0.28869946]
[1718541210121,0.17,145.36,145.34,0.28869946]
[1718541210528,0.68,145.36,145.34,0.28869946]
[1718541213139,3.2254,145.36,145.34,0.28869946]
[1718541213651,0.68,145.36,145.34,0.28869946]
[1718541213828,3.2254,145.36,145.34,0.28869946]
[1718541214028,0.68,145.36,145.34,0.28869946]
[1718541220028,0.68,145.36,145.27,20.0]
[1718541220276,15.3671,145.37,145.28,0.17]
[1718541220476,15.3671,145.37,145.28,0.51]
[1718541220776,15.3671,145.37,145.28,0.34]
[1718541221481,15.3671,145.37,145.29,0.28879852]
[1718541243678,6.0073,145.35,145.29,0.28879852]
[1718541248204,21.6661,145.35,145.29,0.28879852]
[1718541250586,0.51,145.34,145.29,0.28879852]
[1718541251780,21.8361,145.35,145.29,0.28879852]
[1718541251988,21.6661,145.35,145.29,0.28879852]
[1718541252320,21.6661,145.35,145.29,8.22404245]
[1718541252622,21.6661,145.35,145.3,20.0]
[1718541253283,21.6661,145.35,145.31,0.28875877]
[1718541253607,15.6588,145.35,145.31,0.28875877]
[1718541254484,6.0073,145.38,145.31,0.28875877]
[1718541270336,6.0073,145.38,145.31,1.66445586]
[1718541270510,6.0073,145.38,145.31,0.28875877]
[1718541281867,16.6132,145.37,145.31,0.28875877]
[1718541282046,16.4432,145.35,145.31,0.28875877]
[1718541290372,6.3424,145.34,145.31,0.28875877]
[1718541290578,16.4432,145.33,145.31,0.28875877]
[1718541315827,15.5675,145.38,145.31,0.28875877]
[1718541317042,0.17,145.37,145.31,0.28875877]
[1718541317213,0.34,145.37,145.31,0.28875877]
[1718541322927,2.8852,145.37,145.31,0.28875877]
[1718541323137,2.8852,145.37,145.31,0.21332958]
[1718541323138,22.4409,145.36,145.31,0.21332958]
[1718541323749,0.68,145.35,145.31,0.21332958]
[1718541326028,3.2256,145.35,145.31,0.21332958]
[1718541326234,0.68,145.35,145.31,0.21332958]
[1718541326446,3.2256,145.35,145.31,0.21332958]
[1718541327623,23.5904,145.35,145.31,0.21332958]
[1718541327838,26.1361,145.35,145.31,0.21332958]
[1718541328030,8.317,145.35,145.31,0.21332958]
[1718541328341,3.2257,145.35,145.31,0.21332958]
[1718541329457,0.17,145.33,145.31,0.21332958]
[1718541329633,0.51,145.33,145.31,0.21332958]
[1718541331333,0.17,145.32,145.31,0.21332958]
[1718541332642,0.17,145.31,145.28,2.5466]
[1718541334168,0.17,145.31,145.29,2.5466]
[1718541335859,0.17,145.31,145.28,2.5466]
[1718541336369,0.17,145.31,145.29,0.27741021]
[1718541337754,15.8102,145.3,145.29,0.27741021]
[1718541337968,16.1502,145.3,145.29,0.27741021]
[1718541340596,16.4902,145.3,145.29,0.27741021]
[1718541344356,16.4902,145.3,145.22,7.93524393]
[1718541344555,0.17,145.28,145.25,2.5472]
[1718541347364,0.17,145.28,145.18,20.0]
[1718541347562,6.7485,145.28,145.23,2.5476]
[1718541347762,16.6082,145.25,145.22,2.5477]
[1718541347988,16.6082,145.25,145.23,0.26215793]
[1718541348185,0.17,145.24,145.23,0.26215793]
[1718541348387,0.34,145.24,145.23,0.26215793]
[1718541348590,0.51,145.24,145.23,0.26215793]
[1718541348889,0.68,145.24,145.23,0.26215793]
[1718541349682,0.17,145.22,145.17,2.5486]
[1718541349883,3.0579,145.22,145.16,2.5488]
[1718541350087,0.17,145.21,145.16,2.5487]
[1718541350394,0.17,145.2,145.16,2.5487]
[1718541350586,17.1182,145.2,145.16,2.5487]
[1718541351183,17.1182,145.2,145.17,2.5487]
[1718541352990,17.1182,145.2,145.16,2.5487]
[1718541353673,0.17,145.19,145.16,2.5487]
[1718541353991,0.17,145.18,145.15,2.549]
[1718541354296,0.51,145.18,145.15,2.549]
[1718541355094,0.51,145.18,145.16,0.24634097]
[1718541355395,0.17,145.17,145.16,0.24634097]
[1718541355605,0.68,145.17,145.16,0.24634097]
[1718541357079,0.17,145.17,145.16,0.24634097]
[1718541357281,6.5785,145.19,145.16,2.79514097]
[1718541357779,6.5785,145.19,145.17,2.5486]
[1718541358103,0.17,145.19,145.17,2.5486]
[1718541358400,0.34,145.19,145.17,2.5486]
[1718541358590,0.34,145.19,145.16,2.79504097]
[1718541360202,0.17,145.19,145.16,2.79504097]
[1718541360402,16.9482,145.2,145.16,2.79504097]
[1718541361402,0.34,145.19,145.16,0.24634097]
[1718541364097,0.34,145.19,145.16,2.79524097]
[1718541364598,0.17,145.17,145.16,0.24634097]
[1718541365003,0.34,145.17,145.16,0.24634097]
[1718541365182,0.68,145.17,145.16,0.24634097]
[1718541367006,0.68,145.17,145.16,0.19605484]
[1718541377219,0.17,145.19,145.16,0.19605484]
[1718541377395,0.68,145.19,145.16,0.19605484]
[1718541380222,0.34,145.19,145.16,0.19605484]
[1718541381903,0.17,145.21,145.16,0.19605484]
[1718541382226,6.6208,145.22,145.18,2.5485]
[1718541382531,9.1686,145.22,145.17,2.5486]
[1718541383397,0.17,145.21,145.17,2.5486]
[1718541383700,0.17,145.21,145.18,2.5485]
[1718541383904,8.3236,145.22,145.17,2.5486]
[1718541384090,0.68,145.22,145.17,2.5486]
[1718541384294,0.68,145.22,145.18,2.5485]
[1718541384495,0.68,145.22,145.17,2.5485]
[1718541384695,3.2278,145.22,145.17,2.5485]
[1718541385224,0.68,145.22,145.18,2.5485]
[1718541386941,0.68,145.22,145.17,2.5485]
[1718541387313,0.68,145.22,145.18,2.5485]
[1718541388137,0.68,145.22,145.17,2.5485]
[1718541388841,0.68,145.22,145.18,2.5485]
[1718541389342,3.2278,145.22,145.17,2.5485]
[1718541390151,0.68,145.22,145.17,2.5485]
[1718541390352,0.68,145.22,145.18,2.5485]
[1718541391940,3.2279,145.22,145.17,2.5485]
[1718541392247,0.17,145.2,145.16,0.19605484]
[1718541392417,3.2282,145.2,145.16,0.19605484]
[1718541392823,0.68,145.2,145.16,0.19605484]
[1718541393026,0.68,145.2,145.16,2.74485484]
[1718541398832,0.68,145.2,145.17,2.5487]
[1718541399038,40.5914,145.24,145.16,0.19605484]
[1718541399246,22.9295,145.23,145.16,0.19605484]
[1718541399559,15.2873,145.22,145.17,2.5487]
[1718541399850,2.548,145.21,145.16,2.74475484]
[1718541400152,7.644,145.21,145.16,2.74475484]
[1718541400326,5.7765,145.2,145.16,0.19605484]
[1718541400532,0.17,145.18,145.16,0.19605484]
[1718541400738,0.51,145.18,145.16,0.19605484]
[1718541400954,0.17,145.17,145.16,0.19605484]
[1718541411545,0.17,145.16,145.14,2.5491]
[1718541413672,0.51,145.16,145.14,2.5491]
[1718541417783,22.7295,145.15,145.1,0.19613591]
[1718541418077,0.17,145.14,145.12,2.5495]
[1718541418777,0.17,145.14,145.1,0.19613591]
[1718541419162,0.17,145.14,145.12,2.5494]
[1718541419479,0.34,145.14,145.11,2.5497]
[1718541419686,0.34,145.13,145.11,2.5497]
[1718541419858,0.34,145.14,145.12,2.5495]
[1718541420248,0.34,145.14,145.12,2.5494]
[1718541420871,0.34,145.14,145.11,2.5496]
[1718541421286,0.34,145.14,145.12,2.5495]
[1718541422160,0.34,145.14,145.13,2.5494]
[1718541422850,16.6283,145.15,145.13,2.5494]
[1718541423054,0.17,145.17,145.14,2.5491]
[1718541423255,0.68,145.17,145.14,2.5491]
[1718541423459,0.34,145.17,145.14,2.5491]
[1718541424763,15.976,145.19,145.14,2.5491]
[1718541424964,0.34,145.18,145.14,2.5491]
[1718541425487,15.976,145.19,145.14,2.5491]
[1718541425687,15.976,145.19,145.15,2.549]
[1718541425862,15.976,145.19,145.14,2.5491]
[1718541426482,0.34,145.18,145.14,2.5491]
[1718541426802,0.51,145.18,145.14,2.5491]
[1718541427376,0.34,145.18,145.14,2.5491]
[1718541427761,0.17,145.18,145.15,2.549]
[1718541427986,0.17,145.18,145.14,2.5491]
[1718541428288,16.146,145.19,145.15,2.5489]
[1718541428483,0.34,145.2,145.15,2.5489]
[1718541428783,2.8882,145.2,145.15,2.5489]
[1718541428982,0.17,145.18,145.14,2.5492]
[1718541429196,0.34,145.18,145.14,2.5492]
[1718541430602,0.34,145.18,145.1,0.19613591]
[1718541430811,0.17,145.16,145.12,2.5494]
[1718541431104,0.34,145.16,145.12,2.5494]
[1718541431780,0.34,145.16,145.11,2.5496]
[1718541432005,0.34,145.15,145.11,2.5496]
[1718541433805,0.34,145.15,145.12,2.5496]
[1718541434992,0.34,145.15,145.11,2.5496]
[1718541435702,0.17,145.14,145.11,2.5496]
[1718541435885,0.34,145.14,145.11,2.5496]
[1718541436892,0.34,145.14,145.1,2.74593591]
[1718541437728,0.17,145.12,145.1,0.19613591]
[1718541437909,0.17,145.12,145.03,10.6832]
[1718541437910,2.8896,145.12,145.07,2.5504]
[1718541438082,0.17,145.1,145.06,2.5505]
[1718541438282,7.9901,145.1,145.04,2.5508]
[1718541438515,0.17,145.09,145.04,2.5509]
[1718541438704,0.17,145.08,145.05,2.5508]
[1718541438881,6.211,145.11,144.99,0.8663393]
[1718541439087,0.34,145.1,145.07,2.5504]
[1718541439387,0.34,145.1,145.06,2.5505]
[1718541439695,0.51,145.09,145.06,2.5505]
[1718541440804,0.51,145.09,145.05,2.5507]
[1718541441014,0.17,145.08,145.04,2.5508]
[1718541441209,0.17,145.08,145.0,20.0]
[1718541441517,0.17,145.08,145.01,0.19625764]
[1718541441693,0.17,145.08,145.05,2.5507]
[1718541442109,0.17,145.08,145.04,2.5509]
[1718541442694,0.17,145.08,145.05,2.5508]
[1718541443014,0.17,145.08,145.04,2.5509]
[1718541444695,0.38720189,145.09,145.04,2.5509]
[1718541444901,0.17,145.08,145.04,2.5509]
[1718541447227,29.1595,145.11,145.05,2.5507]
[1718541447410,2.5499,145.1,145.05,2.5507]
[1718541448413,0.34,145.09,145.04,2.5509]
[1718541448732,0.34,145.09,145.03,2.551]
[1718541448733,0.17,145.07,145.03,2.551]
[1718541448939,0.34,145.07,145.03,2.551]
[1718541449230,0.34,145.07,145.04,2.551]
[1718541451929,0.34,145.07,145.03,2.5511]
[1718541452537,0.34,145.07,145.04,2.551]
[1718541452737,0.34,145.07,145.01,0.19625764]
[1718541452926,0.34,145.07,145.04,2.5509]
[1718541453334,0.34,145.07,145.03,2.551]
[1718541454905,0.34,145.07,145.04,2.551]
[1718541455115,0.34,145.07,145.03,2.551]
[1718541455334,0.34,145.07,145.01,0.19625764]
[1718541455532,0.34,145.07,145.04,2.551]
[1718541456224,0.34,145.07,145.05,2.5508]
[1718541456420,6.211,145.11,145.01,0.19625764]
[1718541456623,29.1598,145.11,145.05,2.5507]
[1718541456930,21.5098,145.11,145.05,2.5507]
[1718541457234,2.55,145.1,145.05,2.5507]
[1718541457424,7.6499,145.1,145.04,2.5508]
[1718541457624,2.8901,145.09,145.04,2.5508]
[1718541457821,0.51,145.08,145.04,2.5508]
[1718541458025,0.17,145.07,145.04,2.5508]
[1718541458725,0.34,145.07,145.04,2.5508]
[1718541459443,0.34,145.07,145.05,2.5508]
[1718541459738,0.34,145.07,145.04,2.5508]
[1718541460917,0.34,145.06,145.04,2.5508]
[1718541461540,0.34,145.06,145.03,2.551]
[1718541461930,0.34,145.06,145.04,2.551]
[1718541462632,0.34,145.06,145.03,2.551]
[1718541463343,0.34,145.06,145.04,2.551]
[1718541463559,0.34,145.06,145.03,2.551]
[1718541463756,0.34,145.06,145.04,2.551]
[1718541464431,0.34,145.06,145.03,2.551]
[1718541465627,0.51,145.05,145.02,2.5512]
[1718541468157,0.51,145.05,145.01,2.74765764]
[1718541468357,0.34,145.04,145.01,2.74765764]
[1718541468656,0.34,145.03,145.01,0.19625764]
[1718541468840,0.34,145.03,145.01,2.5515]
[1718541469048,0.34,145.03,145.0,2.5515]
[1718541469553,0.34,145.03,144.99,3.4180393]
[1718541469742,0.34,145.03,145.0,2.5517]
[1718541469939,0.17,145.02,144.99,3.4181393]
[1718541470250,0.34,145.02,144.99,3.4181393]
[1718541470457,0.34,145.01,144.99,3.4181393]
[1718541473257,0.34,145.02,144.99,3.4181393]
[1718541473258,0.34,145.02,144.99,0.8663393]
[1718541473447,0.34,145.02,144.99,3.4180393]
[1718541473756,0.34,145.02,145.0,2.5517]
[1718541474057,0.34,145.02,144.99,0.8663393]
[1718541474365,0.17,145.02,145.01,2.5515]
[1718541474560,0.34,145.03,145.0,2.5516]
[1718541476170,0.34,145.03,145.0,2.5517]
[1718541476352,0.34,145.03,144.99,3.4180393]
[1718541476553,0.34,145.03,145.0,2.5517]
[1718541477678,0.34,145.03,144.99,3.4180393]
[1718541480258,0.34,145.03,145.0,2.5516]
[1718541480460,6.3948,145.06,144.99,0.8663393]
[1718541480650,6.3948,145.06,145.01,2.5514]
[1718541480974,6.3948,145.06,144.99,0.8663393]
[1718541481172,6.3948,145.06,145.03,2.5511]
[1718541481560,6.3948,145.06,144.99,0.8663393]
[1718541481750,6.3948,145.06,145.03,2.5511]
[1718541482073,0.17,145.06,145.03,2.5511]
[1718541482273,15.4803,145.07,145.03,2.5511]
[1718541482776,15.4803,145.07,145.05,2.5508]
[1718541482979,15.4803,145.07,145.04,2.5508]
[1718541484566,0.17,145.08,145.05,2.5508]
[1718541484771,0.34,145.08,145.05,2.5508]
[1718541484977,39.1903,145.11,144.99,11.5495393]
[1718541484978,18.7913,145.11,145.06,2.5506]
[1718541485295,18.7913,145.11,145.07,2.5503]
[1718541485296,16.2415,145.11,145.07,2.5503]
[1718541485787,16.2415,145.11,145.06,2.5505]
[1718541485993,16.2415,145.11,145.07,2.5504]
[1718541487668,16.2415,145.11,145.08,2.5503]
[1718541488693,16.2415,145.11,145.07,2.5503]
[1718541488891,16.2415,145.11,145.06,2.5505]
[1718541490866,0.17,145.1,145.05,2.5507]
[1718541491074,3.06,145.1,145.05,2.5508]
[1718541491268,3.06,145.1,145.03,2.551]
[1718541491269,7.6506,145.09,145.03,2.551]
[1718541491577,2.5502,145.09,145.04,2.5509]
[1718541492195,26.0106,145.1,145.04,2.5509]
[1718541492394,0.17,145.08,145.04,2.5509]
[1718541492575,0.51,145.08,145.04,2.5509]
[1718541493578,0.51,145.08,145.0,20.0]
[1718541493896,0.51,145.08,145.04,2.5508]
[1718541494611,0.51,145.08,145.05,2.5508]
[1718541494778,0.17,145.08,145.06,2.5506]
[1718541495090,0.17,145.1,145.0,20.0]
[1718541495302,16.2415,145.11,145.0,20.0]
[1718541495482,16.2415,145.11,145.07,2.5504]
[1718541496478,0.34,145.1,145.07,2.5504]
[1718541497181,16.2415,145.11,145.01,0.17]
[1718541497374,16.2415,145.11,145.08,2.5501]
[1718541497580,16.2415,145.11,145.07,2.5503]
[1718541498080,16.2415,145.11,145.08,2.5502]
[1718541498498,16.2415,145.11,145.01,0.51]
[1718541498712,16.2415,145.11,145.08,2.5502]
[1718541502795,16.2415,145.11,145.09,2.5501]
[1718541503398,16.2415,145.11,145.08,2.5501]
[1718541503732,16.2415,145.11,145.02,0.17]
[1718541504012,16.2415,145.11,145.09,2.55]
[1718541505525,16.2415,145.11,145.08,2.5501]
[1718541508427,16.2415,145.11,145.03,2.757348]
[1718541508627,16.2415,145.11,145.09,2.55]
[1718541513326,16.2415,145.11,145.09,2.41907175]
[1718541516426,16.2415,145.11,145.1,2.5499]
[1718541516624,6.2773,145.13,145.09,2.5499]
[1718541516840,6.2773,145.13,145.04,20.0]
[1718541516841,6.2773,145.13,145.1,2.5499]
[1718541517433,6.2773,145.13,145.09,2.5499]
[1718541520644,8.8267,145.13,145.08,2.5501]
[1718541521257,21.5739,145.13,145.07,2.5503]
[1718541521955,13.9256,145.13,145.08,2.5502]
[1718541522856,8.8267,145.13,145.08,2.5502]
[1718541523560,6.2773,145.13,145.09,2.5501]
[1718541524157,6.2773,145.13,145.08,2.5501]
[1718541524357,6.2773,145.13,145.09,2.5501]
[1718541524554,6.2773,145.13,145.08,2.5501]
[1718541524932,6.2773,145.13,145.09,2.5501]
[1718541527555,0.34,145.12,145.08,2.5502]
[1718541527860,0.34,145.12,145.09,2.5501]
[1718541530156,0.17,145.11,145.04,20.0]
[1718541530361,0.17,145.11,145.08,2.5501]
[1718541530660,0.17,145.11,145.09,2.5501]
[1718541531532,0.17,145.11,145.03,20.0]
[1718541531862,0.17,145.11,145.09,2.55]
[1718541532763,0.17,145.11,145.08,2.5502]
[1718541532976,16.0882,145.09,145.08,2.5502]
[1718541533259,15.9182,145.09,145.08,2.5502]
[1718541534938,6.2773,145.13,145.1,2.5498]
[1718541534939,16.0882,145.12,145.1,2.5498]
[1718541535739,16.0882,145.12,145.09,2.55]
[1718541537667,16.0882,145.12,145.02,20.0]
[1718541537668,16.0882,145.12,145.08,2.5501]
[1718541538351,16.0882,145.12,145.09,2.5501]
[1718541538551,16.0882,145.12,145.08,2.5501]
[1718541538966,16.0882,145.12,145.09,2.5501]
[1718541539478,16.0882,145.12,145.08,2.5501]
[1718541539972,16.0882,145.12,145.09,2.5501]
[1718541541667,16.0882,145.12,145.1,2.5499]
[1718541541874,16.0882,145.12,145.02,20.0]
[1718541542071,16.0882,145.12,145.08,2.5501]
[1718541542451,0.17,145.11,145.02,20.0]
[1718541542779,0.17,145.11,145.08,2.5502]
[1718541545081,0.17,145.11,145.07,2.5503]
[1718541545675,0.34,145.11,145.07,2.5503]
[1718541546385,7.8199,145.1,145.05,2.5507]
[1718541546568,0.34,145.09,145.01,20.0]
[1718541546762,0.34,145.09,145.05,2.5508]
[1718541546971,21.2136,145.08,145.04,2.5508]
[1718541547160,21.2136,145.08,145.05,2.5508]
[1718541547780,21.2136,145.08,145.06,2.5506]
[1718541547954,21.2136,145.08,145.05,2.5507]
[1718541549781,21.2136,145.08,145.06,2.5506]
[1718541549987,21.2136,145.08,145.05,2.5506]
[1718541550889,21.2136,145.08,145.04,2.5508]
[1718541551199,21.2136,145.08,145.01,20.0]
[1718541551380,21.2136,145.08,145.05,2.5507]
[1718541553674,0.34,145.07,144.99,0.8663393]
[1718541553873,0.34,145.07,145.05,2.5508]
[1718541554900,0.34,145.07,145.04,2.5509]
[1718541555690,0.34,145.07,144.99,0.8663393]
[1718541555899,15.1514,145.04,145.01,2.5514]
[1718541556195,6.2322,145.03,144.99,0.8663393]
[1718541556399,6.7422,145.03,145.01,2.5515]
[1718541556582,6.7422,145.03,145.0,2.5515]
[1718541556779,6.5722,145.03,145.01,2.5514]
[1718541556988,6.4022,145.03,145.02,2.5513]
[1718541557199,6.2322,145.03,145.02,2.5513]
[1718541557670,6.2322,145.03,145.01,2.5514]
[1718541557871,6.2322,145.03,144.99,0.8663393]
[1718541558099,6.2322,145.03,145.01,2.5514]
[1718541558877,6.2322,145.03,145.01,2.4641145]
[1718541561483,6.2322,145.03,145.02,2.5513]
[1718541561484,6.0622,145.03,145.02,2.5513]
[1718541561798,15.1514,145.04,144.99,0.8663393]
[1718541562038,15.1514,145.04,145.02,2.5512]
[1718541563306,15.1514,145.04,145.03,2.5511]
[1718541563609,21.7973,145.07,145.04,2.5509]
[1718541564310,21.7973,145.07,145.03,2.551]
[1718541564824,0.17,145.06,145.03,2.551]
[1718541565026,0.51,145.06,145.02,2.5512]
[1718541565385,0.34,145.06,144.99,0.8663393]
[1718541565579,0.17,145.06,144.99,0.8663393]
[1718541565801,0.51,145.06,145.02,2.5512]
[1718541565999,0.51,145.06,144.99,0.8663393]
[1718541566300,0.17,145.05,145.01,2.5514]
[1718541566613,0.17,145.05,145.0,2.5515]
[1718541566614,0.17,145.04,145.0,2.5515]
[1718541566806,2.7214,145.02,144.99,0.8663393]
[1718541567106,15.5983,145.01,144.99,0.8663393]
[1718541567504,15.5983,145.01,144.99,3.4180393]
[1718541568115,15.5983,145.01,145.0,2.5517]
[1718541568513,15.5983,145.01,144.99,0.8663393]
[1718541568742,6.199,145.03,145.0,2.5517]
[1718541568916,6.199,145.03,144.99,0.8663393]
[1718541568917,6.199,145.03,145.01,2.5515]
[1718541569124,6.199,145.03,145.02,2.5513]
[1718541569312,15.5983,145.05,145.01,2.5514]
[1718541570726,0.17,145.04,144.99,0.8663393]
[1718541571032,15.9862,145.04,144.99,3.4181393]
[1718541571233,8.3332,145.04,144.99,3.4181393]
[1718541571405,3.2311,145.04,144.99,3.4181393]
[1718541571723,8.3332,145.04,144.99,3.4181393]
[1718541571898,8.3331,145.04,144.99,3.4181393]
[1718541572304,3.2311,145.04,144.99,3.4181393]
[1718541573024,0.68,145.04,145.0,2.5517]
[1718541576218,0.68,145.04,145.01,2.5515]
[1718541577338,0.68,145.04,144.99,0.8663393]
[1718541577513,0.68,145.04,145.01,2.5514]
[1718541577719,0.68,145.04,145.02,2.5513]
[1718541578540,0.68,145.04,145.01,2.5513]
[1718541578724,0.68,145.04,145.02,2.5513]
[1718541579128,0.68,145.04,144.99,0.8663393]
[1718541579532,0.68,145.04,145.01,2.5513]
[1718541581957,0.68,145.04,145.0,2.5515]
[1718541591263,0.68,145.04,144.99,0.8663393]
[1718541591566,0.51,145.04,145.0,2.5516]
[1718541594372,0.17,145.03,144.99,3.4181393]
[1718541594572,0.17,145.02,144.99,0.8663393]
[1718541594746,0.51,145.02,144.99,3.4180393]
[1718541596771,0.51,145.02,145.0,2.5517]
[1718541597292,0.51,145.02,144.99,3.4181393]
[1718541597585,0.17,145.01,144.99,0.8663393]
[1718541597894,0.17,145.0,144.99,0.8663393]
[1718541598095,0.51,145.0,144.99,0.8663393]
[1718541598390,0.17,145.01,144.99,3.4181393]
[1718541598591,0.51,145.02,144.99,3.4181393]
[1718541599485,0.51,145.02,144.99,0.8663393]
[1718541599699,0.34,145.02,145.0,2.5516]
[1718541599986,0.17,145.02,145.0,2.5516]
[1718541600159,23.251,145.05,144.99,0.8663393]
[1718541600160,15.5983,145.05,144.99,0.8663393]
[1718541600363,15.5983,145.05,145.01,2.5514]
[1718541600587,15.5983,145.05,144.99,0.8663393]
[1718541600964,15.5983,145.05,145.02,2.5512]
[1718541601161,15.5983,145.05,145.01,2.5514]
[1718541601773,15.5983,145.05,145.02,2.5513]
[1718541601976,0.51,145.04,145.02,2.5513]
[1718541602190,0.34,145.04,145.02,2.5513]
[1718541602497,15.5983,145.05,145.02,2.5513]
[1718541602697,15.5983,145.05,145.03,2.5511]
[1718541602995,15.5983,145.05,145.02,2.5513]
[1718541604184,15.5983,145.05,145.01,2.5513]
[1718541604490,0.17,145.04,145.01,2.5513]
[1718541604794,0.51,145.04,145.0,2.5516]
[1718541605011,0.51,145.04,144.99,0.8663393]
[1718541605303,0.17,145.03,145.0,2.5517]
[1718541605595,0.34,145.03,145.0,2.5517]
[1718541606395,0.17,145.02,144.99,0.8663393]
[1718541606697,0.51,145.02,144.99,0.8663393]
[1718541608587,0.51,145.02,144.99,3.4181393]
[1718541609295,0.51,145.02,144.99,0.8663393]
[1718541613579,0.17,145.01,144.99,0.8663393]
[1718541613794,0.51,145.01,144.99,0.8663393]
[1718541614095,0.17,145.0,144.99,0.8663393]
[1718541614303,0.34,145.0,144.99,0.8663393]
[1718541614487,0.34,145.0,144.99,3.4182393]
[1718541614488,0.17,145.0,144.99,3.4182393]
[1718541614693,0.17,145.01,144.99,0.8663393]
[1718541615084,0.17,145.01,144.99,3.4181393]
[1718541615588,0.17,145.01,144.99,0.8663393]
[1718541621249,0.17,145.0,144.99,0.8663393]
[1718541621448,0.51,145.0,144.99,0.8663393]
[1718541621744,0.68,145.0,144.99,0.8663393]
[1718541622159,3.2317,145.0,144.99,0.8663393]
[1718541622671,0.68,145.0,144.99,0.8663393]
[1718541635247,2.7212,145.03,144.99,0.8663393]
[1718541635459,0.17,145.01,144.99,3.4181393]
[1718541635656,0.17,145.01,144.99,0.8663393]
[1718541639574,0.17,145.0,144.99,0.8663393]
[1718541639871,0.68,145.0,144.99,0.8663393]
[1718541640678,0.51,145.0,144.99,0.8663393]
[1718541640839,0.17,145.0,144.99,0.8663393]